[Event "*** Biggest EVER Titled Tuesday"]
[Site "Chess.com"]
[Date "2018.04.17"]
[Round "1"]
[White "guillembaches"]
[Black "AvitalBor"]
[Result "0-1"]
[WhiteElo "2244"]
[BlackElo "2586"]
[TimeControl "180+2"]
[EndTime "13:07:54 PDT"]
[Termination "AvitalBor won on time"]

1. d4 {[%clk 0:03:00.5]} 1... Nf6 {[%clk 0:02:59.5]} 2. Bf4 {[%clk 0:03:01.2]}
2... e6 {[%clk 0:02:58.6]} 3. e3 {[%clk 0:02:58.1]} 3... c5 {[%clk 0:02:59]} 4.
c3 {[%clk 0:02:58.5]} 4... Nc6 {[%clk 0:02:59.6]} 5. Nd2 {[%clk 0:02:59.1]} 5...
Be7 {[%clk 0:03:00.8]} 6. Ngf3 {[%clk 0:02:58.7]} 6... d5 {[%clk 0:03:01.3]} 7.
h3 {[%clk 0:02:56.7]} 7... O-O {[%clk 0:03:01.6]} 8. Bd3 {[%clk 0:02:57.4]} 8...
c4 {[%clk 0:03:01.4]} 9. Bc2 {[%clk 0:02:57.5]} 9... b5 {[%clk 0:03:02.5]} 10.
O-O {[%clk 0:02:54.4]} 10... b4 {[%clk 0:03:02.2]} 11. Ne5 {[%clk 0:02:53]}
11... Bb7 {[%clk 0:02:58.9]} 12. e4 {[%clk 0:02:33.2]} 12... bxc3 {[%clk
0:02:55.2]} 13. bxc3 {[%clk 0:02:21.4]} 13... Nxe5 {[%clk 0:02:49.7]} 14. Bxe5
{[%clk 0:02:16.5]} 14... Nxe4 {[%clk 0:02:42.1]} 15. Nxe4 {[%clk 0:02:14]} 15...
dxe4 {[%clk 0:02:41.4]} 16. Re1 {[%clk 0:02:01.6]} 16... f6 {[%clk 0:02:33.5]}
17. Bh2 {[%clk 0:01:53.5]} 17... f5 {[%clk 0:02:33.7]} 18. Rb1 {[%clk
0:01:41.9]} 18... Bd5 {[%clk 0:02:33.5]} 19. Qe2 {[%clk 0:01:16.8]} 19... Bd6
{[%clk 0:02:21.7]} 20. Be5 {[%clk 0:01:12.9]} 20... Bxe5 {[%clk 0:02:21.4]} 21.
dxe5 {[%clk 0:01:14.8]} 21... Rb8 {[%clk 0:02:22.1]} 22. Qe3 {[%clk 0:01:11]}
22... Qa5 {[%clk 0:02:16.9]} 23. a4 {[%clk 0:01:03]} 23... h6 {[%clk 0:01:55.4]}
24. Rb5 {[%clk 0:00:48.5]} 24... Rxb5 {[%clk 0:01:52.4]} 25. axb5 {[%clk
0:00:50.4]} 25... Rb8 {[%clk 0:01:50.5]} 26. g4 {[%clk 0:00:38.8]} 26... Rxb5
{[%clk 0:01:28]} 27. g5 {[%clk 0:00:36.6]} 27... hxg5 {[%clk 0:01:12]} 28. Qxg5
{[%clk 0:00:36.3]} 28... Qc7 {[%clk 0:01:12.9]} 29. Re3 {[%clk 0:00:32.9]} 29...
Rb8 {[%clk 0:01:10.4]} 30. Rg3 {[%clk 0:00:32.2]} 30... Qxe5 {[%clk 0:01:09.5]}
31. h4 {[%clk 0:00:26.1]} 31... Rf8 {[%clk 0:01:08.4]} 32. h5 {[%clk 0:00:22.9]}
32... Qf6 {[%clk 0:01:09.2]} 33. Qd2 {[%clk 0:00:21.5]} 33... f4 {[%clk
0:01:08.4]} 34. Rg6 {[%clk 0:00:22.6]} 34... e3 {[%clk 0:00:55]} 35. Qe1 {[%clk
0:00:15.5]} 35... Qh4 {[%clk 0:00:52.1]} 0-1

[Event "*** Biggest EVER Titled Tuesday"]
[Site "Chess.com"]
[Date "2018.04.17"]
[Round "1"]
[White "GianmarcoVaR"]
[Black "Pudor"]
[Result "1-0"]
[WhiteElo "2554"]
[BlackElo "2211"]
[TimeControl "180+2"]
[EndTime "13:08:09 PDT"]
[Termination "GianmarcoVaR won by resignation"]

1. d4 {[%clk 0:02:56.3]} 1... Nf6 {[%clk 0:02:57.6]} 2. Nf3 {[%clk 0:02:57.3]}
2... g6 {[%clk 0:02:57.1]} 3. c4 {[%clk 0:02:58.4]} 3... Bg7 {[%clk 0:02:57.3]}
4. g3 {[%clk 0:02:59.6]} 4... O-O {[%clk 0:02:57.9]} 5. Bg2 {[%clk 0:03:00.8]}
5... d6 {[%clk 0:02:58.6]} 6. O-O {[%clk 0:03:01.8]} 6... Nbd7 {[%clk 0:02:51]}
7. Nc3 {[%clk 0:03:01.8]} 7... e5 {[%clk 0:02:51.1]} 8. e4 {[%clk 0:03:02.6]}
8... exd4 {[%clk 0:02:50.1]} 9. Nxd4 {[%clk 0:03:03.4]} 9... Re8 {[%clk
0:02:51.1]} 10. h3 {[%clk 0:03:00.1]} 10... Nc5 {[%clk 0:02:50.2]} 11. Re1
{[%clk 0:02:56.8]} 11... a5 {[%clk 0:02:51.1]} 12. b3 {[%clk 0:02:54.3]} 12...
Bd7 {[%clk 0:02:37.9]} 13. Bf4 {[%clk 0:02:41.2]} 13... Nh5 {[%clk 0:02:32.9]}
14. Be3 {[%clk 0:02:40.3]} 14... c6 {[%clk 0:02:29.5]} 15. Qc2 {[%clk
0:02:38.7]} 15... Qe7 {[%clk 0:02:29.4]} 16. Rad1 {[%clk 0:02:37]} 16... Nf6
{[%clk 0:02:20.5]} 17. Bf4 {[%clk 0:02:29]} 17... Nh5 {[%clk 0:01:58.6]} 18. Bc1
{[%clk 0:02:23.9]} 18... f5 {[%clk 0:01:46.5]} 19. Re2 {[%clk 0:01:26.4]} 19...
f4 {[%clk 0:01:03.2]} 20. g4 {[%clk 0:01:25.7]} 20... Bxd4 {[%clk 0:00:53.6]}
21. Rxd4 {[%clk 0:01:22]} 21... Ne6 {[%clk 0:00:54.7]} 22. Rd1 {[%clk
0:01:16.4]} 22... f3 {[%clk 0:00:51.2]} 23. Bxf3 {[%clk 0:01:14.3]} 23... Nhf4
{[%clk 0:00:52.3]} 24. Bg2 {[%clk 0:01:03.8]} 24... Qh4 {[%clk 0:00:47.8]} 25.
Bxf4 {[%clk 0:00:57]} 25... Nxf4 {[%clk 0:00:49.7]} 26. Re3 {[%clk 0:00:56.7]}
26... Re6 {[%clk 0:00:19.8]} 27. Ne2 {[%clk 0:00:52.3]} 27... Nxg2 {[%clk
0:00:19.1]} 28. Kxg2 {[%clk 0:00:52.8]} 28... h5 {[%clk 0:00:20.6]} 29. Rg3
{[%clk 0:00:45]} 29... Rf8 {[%clk 0:00:20.5]} 30. Rdd3 {[%clk 0:00:27.7]} 30...
Ref6 {[%clk 0:00:21.4]} 31. f3 {[%clk 0:00:26.4]} 31... hxg4 {[%clk 0:00:22.3]}
32. hxg4 {[%clk 0:00:27]} 32... Qg5 {[%clk 0:00:23.3]} 33. f4 {[%clk 0:00:24.3]}
33... Rxf4 {[%clk 0:00:23.8]} 34. Nxf4 {[%clk 0:00:25]} 34... Rxf4 {[%clk
0:00:24.7]} 35. Qd2 {[%clk 0:00:21.3]} 35... Qe5 {[%clk 0:00:22.6]} 36. Rxd6
{[%clk 0:00:20]} 36... Bxg4 {[%clk 0:00:21.3]} 37. Rxg6+ {[%clk 0:00:20.1]} 1-0

[Event "*** Biggest EVER Titled Tuesday"]
[Site "Chess.com"]
[Date "2018.04.17"]
[Round "1"]
[White "NIGWAPO"]
[Black "wadsy27"]
[Result "1/2-1/2"]
[WhiteElo "2502"]
[BlackElo "2148"]
[TimeControl "180+2"]
[EndTime "13:08:10 PDT"]
[Termination "Game drawn by agreement"]

1. Nf3 {[%clk 0:03:01.9]} 1... d5 {[%clk 0:03:00.6]} 2. c4 {[%clk 0:03:03.4]}
2... c6 {[%clk 0:03:01.1]} 3. g3 {[%clk 0:03:03.9]} 3... Nf6 {[%clk 0:03:01.8]}
4. Bg2 {[%clk 0:03:05.4]} 4... dxc4 {[%clk 0:03:03]} 5. Qc2 {[%clk 0:03:05.9]}
5... Qd5 {[%clk 0:03:01.3]} 6. Nc3 {[%clk 0:03:05.1]} 6... Qh5 {[%clk 0:02:56]}
7. O-O {[%clk 0:03:05.1]} 7... Bh3 {[%clk 0:02:56.4]} 8. Ne4 {[%clk 0:03:02.8]}
8... Bxg2 {[%clk 0:02:48.5]} 9. Nxf6+ {[%clk 0:03:02.4]} 9... exf6 {[%clk
0:02:47.1]} 10. Kxg2 {[%clk 0:03:03.9]} 10... Qd5 {[%clk 0:02:38.8]} 11. e4
{[%clk 0:03:04.1]} 11... Qd3 {[%clk 0:02:30.4]} 12. Qxd3 {[%clk 0:03:02.6]}
12... cxd3 {[%clk 0:02:31]} 13. Ne1 {[%clk 0:03:04.2]} 13... Na6 {[%clk
0:02:29.9]} 14. Nxd3 {[%clk 0:03:05.6]} 14... O-O-O {[%clk 0:02:30.9]} 15. Nf4
{[%clk 0:03:05.4]} 15... Nc5 {[%clk 0:02:21.2]} 16. Re1 {[%clk 0:02:59.9]} 16...
Bd6 {[%clk 0:01:53.1]} 17. d4 {[%clk 0:02:49.3]} 17... Bxf4 {[%clk 0:01:53.6]}
18. dxc5 {[%clk 0:02:50.8]} 18... Be5 {[%clk 0:01:49]} 19. Re2 {[%clk
0:02:48.3]} 19... Rd3 {[%clk 0:01:44.1]} 20. Be3 {[%clk 0:02:46.9]} 20... Rhd8
{[%clk 0:01:41.5]} 21. Rc1 {[%clk 0:02:47]} 21... Bd4 {[%clk 0:01:26.5]} 22. Bf4
{[%clk 0:02:39.3]} 22... a5 {[%clk 0:01:15.9]} 23. b3 {[%clk 0:02:37]} 23... Rc3
{[%clk 0:01:12.8]} 24. Rxc3 {[%clk 0:02:31.7]} 24... Bxc3 {[%clk 0:01:13.7]} 25.
Be3 {[%clk 0:02:32.6]} 25... Bd4 {[%clk 0:01:12.3]} 26. Kf3 {[%clk 0:02:29.2]}
26... Bxe3 {[%clk 0:01:09.4]} 27. Kxe3 {[%clk 0:02:30.1]} 27... Rd1 {[%clk
0:01:09]} 28. Rd2 {[%clk 0:02:29.3]} 28... Rc1 {[%clk 0:01:09]} 29. Kd4 {[%clk
0:02:28.5]} 29... Kd7 {[%clk 0:01:09]} 30. f4 {[%clk 0:02:27.5]} 30... Ke7
{[%clk 0:01:08]} 31. Rb2 {[%clk 0:02:21.9]} 31... Rd1+ {[%clk 0:01:03.1]} 32.
Kc3 {[%clk 0:02:20.3]} 32... Rc1+ {[%clk 0:01:03]} 33. Rc2 {[%clk 0:02:20.7]}
33... Re1 {[%clk 0:00:58.8]} 34. Kd3 {[%clk 0:02:21.6]} 34... Ke6 {[%clk
0:00:56.8]} 35. Rd2 {[%clk 0:02:18.6]} 35... f5 {[%clk 0:00:55]} 36. exf5+
{[%clk 0:02:13.2]} 36... Kxf5 {[%clk 0:00:56]} 37. a3 {[%clk 0:02:09]} 37... Rc1
{[%clk 0:00:55.1]} 38. Kd4 {[%clk 0:02:06.7]} 38... Re1 {[%clk 0:00:46.4]} 39.
Kd3 {[%clk 0:01:48.2]} 39... Kg4 {[%clk 0:00:42.5]} 40. b4 {[%clk 0:01:46.6]}
40... a4 {[%clk 0:00:39.7]} 41. Kc2 {[%clk 0:01:41]} 41... Re3 {[%clk
0:00:36.8]} 42. Kb2 {[%clk 0:01:40.8]} 42... Re7 {[%clk 0:00:35.3]} 43. Kc3
{[%clk 0:01:39.8]} 43... Kh3 {[%clk 0:00:35.8]} 44. b5 {[%clk 0:01:34.7]} 44...
Re3+ {[%clk 0:00:31.7]} 45. Kb4 {[%clk 0:01:35.1]} 45... Rb3+ {[%clk 0:00:32.6]}
46. Kxa4 {[%clk 0:01:35.9]} 46... Rxb5 {[%clk 0:00:33.7]} 47. Rd7 {[%clk
0:01:33.7]} 47... Kxh2 {[%clk 0:00:31.6]} 48. Rxf7 {[%clk 0:01:34.7]} 48... Kxg3
{[%clk 0:00:32]} 49. Rxg7+ {[%clk 0:01:36.1]} 49... Kxf4 {[%clk 0:00:33.4]} 50.
Rxh7 {[%clk 0:01:37.6]} 50... Ke4 {[%clk 0:00:32.8]} 51. Rh4+ {[%clk 0:01:32.9]}
51... Kd5 {[%clk 0:00:33.2]} 52. Rh5+ {[%clk 0:01:33.8]} 52... Kc4 {[%clk
0:00:34.1]} 53. Rh4+ {[%clk 0:01:34.6]} 53... Kxc5 {[%clk 0:00:35.2]} 54. Rh5+
{[%clk 0:01:35.9]} 54... Kb6 {[%clk 0:00:36.4]} 55. Rxb5+ {[%clk 0:01:36.7]}
55... cxb5+ {[%clk 0:00:37.1]} 56. Kb4 {[%clk 0:01:38.2]} 56... Ka6 {[%clk
0:00:38.5]} 57. a4 {[%clk 0:01:37]} 57... bxa4 {[%clk 0:00:34.5]} 58. Kxa4
{[%clk 0:01:38]} 58... Kb6 {[%clk 0:00:35.8]} 59. Kb4 {[%clk 0:01:39.6]} 1/2-1/2

[Event "*** Biggest EVER Titled Tuesday"]
[Site "Chess.com"]
[Date "2018.04.17"]
[Round "1"]
[White "Matibar"]
[Black "HovmoellerHest"]
[Result "1-0"]
[WhiteElo "2597"]
[BlackElo "2242"]
[TimeControl "180+2"]
[EndTime "13:08:11 PDT"]
[Termination "Matibar won by resignation"]

1. d4 {[%clk 0:03:00]} 1... Nf6 {[%clk 0:03:00]} 2. Nf3 {[%clk 0:03:00.6]} 2...
e6 {[%clk 0:03:00.6]} 3. Bg5 {[%clk 0:03:01.6]} 3... d5 {[%clk 0:02:54.8]} 4. e3
{[%clk 0:03:01.7]} 4... Be7 {[%clk 0:02:55.3]} 5. Bd3 {[%clk 0:03:01.1]} 5...
O-O {[%clk 0:02:55.6]} 6. Nbd2 {[%clk 0:02:58.3]} 6... c5 {[%clk 0:02:53.1]} 7.
c3 {[%clk 0:02:59.5]} 7... Nc6 {[%clk 0:02:49.6]} 8. O-O {[%clk 0:02:29.2]} 8...
h6 {[%clk 0:02:46]} 9. Bxf6 {[%clk 0:02:29.6]} 9... Bxf6 {[%clk 0:02:45.5]} 10.
dxc5 {[%clk 0:02:30.6]} 10... Qe7 {[%clk 0:02:31.6]} 11. e4 {[%clk 0:02:23.5]}
11... Rd8 {[%clk 0:01:43.7]} 12. Qe2 {[%clk 0:02:20.7]} 12... Qxc5 {[%clk
0:01:35.7]} 13. e5 {[%clk 0:02:21.1]} 13... Be7 {[%clk 0:01:34.4]} 14. Nb3
{[%clk 0:02:19.3]} 14... Qb6 {[%clk 0:01:33.9]} 15. Bc2 {[%clk 0:02:20.9]} 15...
Na5 {[%clk 0:01:19.5]} 16. Nxa5 {[%clk 0:02:10.4]} 16... Qxa5 {[%clk 0:01:21.4]}
17. Nd4 {[%clk 0:02:12.1]} 17... Bd7 {[%clk 0:00:59.9]} 18. Kh1 {[%clk
0:02:07.8]} 18... b5 {[%clk 0:00:59.1]} 19. a3 {[%clk 0:02:05.7]} 19... Qb6
{[%clk 0:00:58.6]} 20. f4 {[%clk 0:01:58.1]} 20... Bc5 {[%clk 0:00:49.5]} 21. f5
{[%clk 0:01:45.1]} 21... Bxd4 {[%clk 0:00:44.4]} 22. cxd4 {[%clk 0:01:44.6]}
22... Qxd4 {[%clk 0:00:41.5]} 23. f6 {[%clk 0:01:44.9]} 23... g6 {[%clk
0:00:31.6]} 24. Bd3 {[%clk 0:01:31.5]} 24... Rac8 {[%clk 0:00:21.5]} 25. Rad1
{[%clk 0:01:32.2]} 25... Qh4 {[%clk 0:00:22]} 26. Rf3 {[%clk 0:01:30.9]} 26...
d4 {[%clk 0:00:17.4]} 27. Rh3 {[%clk 0:01:29.7]} 27... Qg5 {[%clk 0:00:18.3]}
28. Rg3 {[%clk 0:01:31.2]} 28... Qh4 {[%clk 0:00:19.4]} 29. Re1 {[%clk
0:00:21.1]} 29... Bc6 {[%clk 0:00:20]} 30. Kg1 {[%clk 0:00:22.3]} 30... Rd5
{[%clk 0:00:20.5]} 31. Qf2 {[%clk 0:00:21.2]} 31... Kh8 {[%clk 0:00:19.9]} 32.
Re4 {[%clk 0:00:20.9]} 32... Rc5 {[%clk 0:00:20.1]} 33. Rxh4 {[%clk 0:00:21.2]}
1-0

[Event "*** Biggest EVER Titled Tuesday"]
[Site "Chess.com"]
[Date "2018.04.17"]
[Round "1"]
[White "Nutflush"]
[Black "carlesdc96"]
[Result "0-1"]
[WhiteElo "2035"]
[BlackElo "2460"]
[TimeControl "180+2"]
[EndTime "13:08:14 PDT"]
[Termination "carlesdc96 won by resignation"]

1. e4 {[%clk 0:03:00.8]} 1... e6 {[%clk 0:03:00.9]} 2. d4 {[%clk 0:03:01.3]}
2... d5 {[%clk 0:03:02.4]} 3. Nd2 {[%clk 0:03:02.8]} 3... c5 {[%clk 0:03:03.2]}
4. exd5 {[%clk 0:03:03.8]} 4... Qxd5 {[%clk 0:03:04]} 5. Ngf3 {[%clk 0:03:05.4]}
5... cxd4 {[%clk 0:03:04.7]} 6. Bc4 {[%clk 0:03:06.9]} 6... Qd6 {[%clk
0:03:06.1]} 7. O-O {[%clk 0:03:07.5]} 7... Nf6 {[%clk 0:03:07.6]} 8. Nb3 {[%clk
0:03:07.7]} 8... Nc6 {[%clk 0:03:09.3]} 9. Nbxd4 {[%clk 0:03:09]} 9... Nxd4
{[%clk 0:03:11.2]} 10. Nxd4 {[%clk 0:03:09.7]} 10... Be7 {[%clk 0:03:11.7]} 11.
c3 {[%clk 0:02:57.9]} 11... O-O {[%clk 0:03:11.3]} 12. Qe2 {[%clk 0:02:58.4]}
12... Bd7 {[%clk 0:03:09.4]} 13. Rd1 {[%clk 0:02:53.8]} 13... Qc7 {[%clk
0:03:09.9]} 14. Bd3 {[%clk 0:02:33.2]} 14... h6 {[%clk 0:03:05.7]} 15. Nf5
{[%clk 0:02:24.9]} 15... exf5 {[%clk 0:02:11.3]} 16. Qxe7 {[%clk 0:02:24.5]}
16... Rfe8 {[%clk 0:02:12.3]} 17. Qb4 {[%clk 0:02:21.1]} 17... Ne4 {[%clk
0:02:06.7]} 18. f3 {[%clk 0:01:58.3]} 18... a5 {[%clk 0:01:55.3]} 19. Qc4 {[%clk
0:01:58.5]} 19... Qb6+ {[%clk 0:01:51]} 20. Qd4 {[%clk 0:01:51.3]} 20... Qxd4+
{[%clk 0:01:51.5]} 21. cxd4 {[%clk 0:01:53.2]} 21... Nf6 {[%clk 0:01:53.1]} 22.
Bf4 {[%clk 0:01:52.6]} 22... Nd5 {[%clk 0:01:52]} 23. Be5 {[%clk 0:01:51.4]}
23... Rac8 {[%clk 0:01:52]} 24. Rac1 {[%clk 0:01:51.3]} 24... Nb4 {[%clk
0:01:51.9]} 25. Bb1 {[%clk 0:01:50.2]} 25... Be6 {[%clk 0:01:47.7]} 26. a3
{[%clk 0:01:50.3]} 26... Nd5 {[%clk 0:01:47.2]} 27. Bd3 {[%clk 0:01:32.9]} 27...
f6 {[%clk 0:01:45.5]} 28. Bg3 {[%clk 0:01:32.8]} 28... f4 {[%clk 0:01:44.3]} 29.
Bf2 {[%clk 0:01:33.3]} 29... Bf7 {[%clk 0:01:40.5]} 30. Be4 {[%clk 0:01:32.6]}
30... b6 {[%clk 0:01:38.7]} 31. Bf5 {[%clk 0:01:12.9]} 31... Rxc1 {[%clk
0:01:35.4]} 32. Rxc1 {[%clk 0:01:14.8]} 32... g6 {[%clk 0:01:37]} 33. Be4 {[%clk
0:01:14.4]} 33... f5 {[%clk 0:01:33.2]} 34. Bxd5 {[%clk 0:01:15.3]} 34... Bxd5
{[%clk 0:01:35.1]} 35. Kf1 {[%clk 0:01:16.2]} 35... Kf7 {[%clk 0:01:35]} 36.
Rc7+ {[%clk 0:01:15.9]} 36... Kf6 {[%clk 0:01:35.9]} 37. Rh7 {[%clk 0:00:59.7]}
37... Bc4+ {[%clk 0:01:23.5]} 38. Kg1 {[%clk 0:01:00.6]} 38... Re2 {[%clk
0:01:23.5]} 39. Rc7 {[%clk 0:00:52.1]} 39... b5 {[%clk 0:01:22.4]} 40. Rc6+
{[%clk 0:00:44.7]} 40... Kf7 {[%clk 0:01:23.3]} 41. Rc7+ {[%clk 0:00:44.7]}
41... Ke8 {[%clk 0:01:24.1]} 42. g3 {[%clk 0:00:33.9]} 42... fxg3 {[%clk
0:01:13.5]} 43. hxg3 {[%clk 0:00:35.8]} 43... Rxb2 {[%clk 0:01:13]} 44. Rc6
{[%clk 0:00:31.7]} 44... Bf7 {[%clk 0:01:11.4]} 45. Ra6 {[%clk 0:00:26.9]} 45...
b4 {[%clk 0:01:10.8]} 46. Rxa5 {[%clk 0:00:27.9]} 46... b3 {[%clk 0:01:11]} 47.
Rb5 {[%clk 0:00:19.6]} 47... Rd2 {[%clk 0:01:09.8]} 48. Rb7 {[%clk 0:00:20.2]}
48... Bd5 {[%clk 0:01:08]} 49. Kg2 {[%clk 0:00:21]} 49... Bxb7 {[%clk
0:01:08.7]} 0-1

[Event "*** Biggest EVER Titled Tuesday"]
[Site "Chess.com"]
[Date "2018.04.17"]
[Round "1"]
[White "Blitzking4444"]
[Black "robbykevlishvili"]
[Result "0-1"]
[WhiteElo "1952"]
[BlackElo "2448"]
[TimeControl "180+2"]
[EndTime "13:08:14 PDT"]
[Termination "robbykevlishvili won on time"]

1. e4 {[%clk 0:03:01.9]} 1... c5 {[%clk 0:02:59]} 2. Nf3 {[%clk 0:03:02.8]} 2...
d6 {[%clk 0:02:58.9]} 3. d4 {[%clk 0:03:04.2]} 3... cxd4 {[%clk 0:03:00.2]} 4.
Nxd4 {[%clk 0:03:06.1]} 4... Nf6 {[%clk 0:03:01.3]} 5. Nc3 {[%clk 0:03:07.7]}
5... a6 {[%clk 0:03:02.6]} 6. Be2 {[%clk 0:03:09]} 6... e5 {[%clk 0:03:02.7]} 7.
Nb3 {[%clk 0:03:10.1]} 7... Be7 {[%clk 0:03:03.6]} 8. Bg5 {[%clk 0:03:11]} 8...
Be6 {[%clk 0:03:04.1]} 9. Bxf6 {[%clk 0:03:12]} 9... Bxf6 {[%clk 0:03:03.1]} 10.
Qd3 {[%clk 0:03:13.9]} 10... Nc6 {[%clk 0:03:02.9]} 11. O-O-O {[%clk 0:03:13.8]}
11... Qb6 {[%clk 0:03:03.3]} 12. Qxd6 {[%clk 0:03:06.8]} 12... Be7 {[%clk
0:02:23.2]} 13. Qd2 {[%clk 0:02:35.1]} 13... Qxf2 {[%clk 0:02:18.9]} 14. Rhf1
{[%clk 0:02:22.9]} 14... Qh4 {[%clk 0:02:14.3]} 15. Kb1 {[%clk 0:01:41.5]} 15...
O-O {[%clk 0:02:11.9]} 16. Nd5 {[%clk 0:01:41.6]} 16... Bg5 {[%clk 0:02:11.3]}
17. Qd3 {[%clk 0:01:29.1]} 17... Rad8 {[%clk 0:02:10.6]} 18. g3 {[%clk
0:01:21.3]} 18... Qxh2 {[%clk 0:02:06.8]} 19. c3 {[%clk 0:00:21.2]} 19... Qh6
{[%clk 0:02:03.5]} 20. Rh1 {[%clk 0:00:16.9]} 20... Qg6 {[%clk 0:01:34.6]} 21.
Bh5 {[%clk 0:00:17.7]} 21... Qh6 {[%clk 0:00:57.9]} 22. Bg4 {[%clk 0:00:18.9]}
22... Bxg4 {[%clk 0:00:57.2]} 23. Rxh6 {[%clk 0:00:19.7]} 23... Bxh6 {[%clk
0:00:58.7]} 24. Rh1 {[%clk 0:00:18.7]} 24... Bg5 {[%clk 0:00:58.2]} 25. Nc5
{[%clk 0:00:19.3]} 25... b6 {[%clk 0:00:57.9]} 26. Nxa6 {[%clk 0:00:20]} 26...
Be6 {[%clk 0:00:57.6]} 27. Qf3 {[%clk 0:00:17.2]} 27... h6 {[%clk 0:00:56.7]}
28. Ne3 {[%clk 0:00:11]} 28... Ra8 {[%clk 0:00:55.2]} 29. Nb4 {[%clk 0:00:10.6]}
29... Nxb4 {[%clk 0:00:55.7]} 30. cxb4 {[%clk 0:00:11.8]} 30... Bxa2+ {[%clk
0:00:57.2]} 31. Kc2 {[%clk 0:00:09.4]} 31... Rac8+ {[%clk 0:00:55.8]} 32. Kd3
{[%clk 0:00:08.6]} 32... Rfd8+ {[%clk 0:00:56.1]} 33. Ke2 {[%clk 0:00:08.5]}
33... Rd4 {[%clk 0:00:52.5]} 34. Rd1 {[%clk 0:00:03.6]} 34... Rxb4 {[%clk
0:00:51.3]} 35. Nd5 {[%clk 0:00:03.7]} 35... Rxb2+ {[%clk 0:00:51.5]} 36. Kf1
{[%clk 0:00:05.1]} 36... Bb3 {[%clk 0:00:40.5]} 37. Re1 {[%clk 0:00:03.2]} 37...
Rcc2 {[%clk 0:00:37.8]} 0-1

[Event "*** Biggest EVER Titled Tuesday"]
[Site "Chess.com"]
[Date "2018.04.17"]
[Round "1"]
[White "albi1999"]
[Black "FastChance"]
[Result "1-0"]
[WhiteElo "2391"]
[BlackElo "2691"]
[TimeControl "180+2"]
[EndTime "13:08:16 PDT"]
[Termination "albi1999 won by checkmate"]

1. d4 {[%clk 0:03:01.5]} 1... e6 {[%clk 0:03:00.6]} 2. c4 {[%clk 0:03:01.7]}
2... Nf6 {[%clk 0:03:01.5]} 3. Nf3 {[%clk 0:02:59.6]} 3... Bb4+ {[%clk
0:03:02.3]} 4. Bd2 {[%clk 0:02:49.9]} 4... Bxd2+ {[%clk 0:03:03.1]} 5. Qxd2
{[%clk 0:02:50.6]} 5... O-O {[%clk 0:03:04.2]} 6. g3 {[%clk 0:02:51.2]} 6... d5
{[%clk 0:03:04.5]} 7. Bg2 {[%clk 0:02:52.4]} 7... Nbd7 {[%clk 0:03:03.9]} 8. O-O
{[%clk 0:02:51.7]} 8... dxc4 {[%clk 0:03:01.8]} 9. Na3 {[%clk 0:02:46.5]} 9...
Nb6 {[%clk 0:02:56]} 10. Rac1 {[%clk 0:02:43.8]} 10... Ne4 {[%clk 0:02:39.3]}
11. Qc2 {[%clk 0:02:41.8]} 11... Nd6 {[%clk 0:02:38.2]} 12. Ne5 {[%clk
0:02:42.5]} 12... f6 {[%clk 0:02:31.3]} 13. Nexc4 {[%clk 0:02:36.6]} 13... Ndxc4
{[%clk 0:02:31.6]} 14. Nxc4 {[%clk 0:02:37.5]} 14... Qxd4 {[%clk 0:02:32.6]} 15.
Nxb6 {[%clk 0:02:34.9]} 15... Qxb6 {[%clk 0:02:26.2]} 16. Qxc7 {[%clk
0:02:32.7]} 16... Qxb2 {[%clk 0:02:27.3]} 17. Rc2 {[%clk 0:02:22.2]} 17... Qb4
{[%clk 0:02:27.1]} 18. Rfc1 {[%clk 0:01:55.7]} 18... e5 {[%clk 0:02:18.8]} 19.
Rc4 {[%clk 0:01:49.6]} 19... Qb6 {[%clk 0:01:57.1]} 20. Qe7 {[%clk 0:01:43.1]}
20... Qe6 {[%clk 0:01:44.4]} 21. Rc7 {[%clk 0:01:32.2]} 21... Qxe7 {[%clk
0:01:19.1]} 22. Rxe7 {[%clk 0:01:34.1]} 22... Rd8 {[%clk 0:00:59.1]} 23. h3
{[%clk 0:01:18.8]} 23... Bf5 {[%clk 0:00:22.5]} 24. Rcc7 {[%clk 0:01:13.5]}
24... Rd2 {[%clk 0:00:19.8]} 25. Rxg7+ {[%clk 0:01:12.4]} 25... Kh8 {[%clk
0:00:21.1]} 26. g4 {[%clk 0:00:48.9]} 26... Bg6 {[%clk 0:00:21.8]} 27. Rxb7
{[%clk 0:00:47.4]} 27... Rxa2 {[%clk 0:00:18]} 28. h4 {[%clk 0:00:43.5]} 28...
Rxe2 {[%clk 0:00:18.3]} 29. h5 {[%clk 0:00:43.9]} 29... Bc2 {[%clk 0:00:16]} 30.
Rbc7 {[%clk 0:00:35.5]} 30... Rd8 {[%clk 0:00:14.8]} 31. h6 {[%clk 0:00:32.9]}
31... a5 {[%clk 0:00:11]} 32. Rc6 {[%clk 0:00:17.4]} 32... a4 {[%clk 0:00:08.1]}
33. Rxf6 {[%clk 0:00:18]} 33... Bd3 {[%clk 0:00:07.1]} 34. Ra7 {[%clk
0:00:14.4]} 34... Bb5 {[%clk 0:00:06.2]} 35. Ra5 {[%clk 0:00:14.3]} 35... Be8
{[%clk 0:00:06.5]} 36. Rf8# {[%clk 0:00:14.5]} 1-0